bitfinex/quotes_SOLUSD_20260202
["timestamp","ask_amount","ask_price","bid_price","bid_amount"]
[1770004082185,24.16702825,98.28,98.105,4.28275937]
[1770004082186,4.27527085,98.236,98.105,4.28275937]
[1770004082487,4.27527085,98.236,98.104,28.34]
[1770004082488,4.10368722,98.231,98.109,4.28275937]
[1770004082690,4.10368722,98.229,98.117,4.28275937]
[1770004082891,4.10368722,98.248,98.132,4.28275937]
[1770004083071,4.10368722,98.248,98.137,4.17929937]
[1770004083272,4.10368722,98.289,98.145,55.05648482]
[1770004083482,4.10368722,98.279,98.175,4.27527085]
[1770004083679,4.10368722,98.299,98.2,5.36086188]
[1770004083874,4.10368722,98.337,98.224,9.63613273]
[1770004084184,6.50103381,98.405,98.201,28.34]
[1770004084185,4.10368722,98.367,98.26,5.36086188]
[1770004084373,4.10368722,98.367,98.262,4.27527085]
[1770004084687,4.10368722,98.319,98.21,50.56865027]
[1770004084887,4.10368722,98.279,98.124,50.92936874]
[1770004085108,24.16702825,98.26,98.149,5.36086188]
[1770004085276,4.10368722,98.26,98.202,4.28275937]
[1770004085472,4.10368722,98.319,98.209,4.27527085]
[1770004085681,3.82359014,98.386,98.239,4.28275937]
[1770004085682,4.10368722,98.359,98.239,4.28275937]
[1770004085882,4.10368722,98.359,98.272,4.27527085]
[1770004086079,4.10368722,98.377,98.296,4.28275937]
[1770004086308,4.10368722,98.377,98.298,4.28275937]
[1770004086588,4.10368722,98.377,98.301,4.28275937]
[1770004086793,3.82359014,98.386,98.309,50.32562289]
[1770004086993,4.10368722,98.435,98.33,4.28275937]
[1770004087294,4.10368722,98.409,98.32,4.27527085]
[1770004087476,4.10368722,98.379,98.314,4.28275937]
[1770004087676,4.291768,98.397,98.314,4.28275937]
[1770004087877,4.291768,98.397,98.244,10.1787239]
[1770004087878,4.291768,98.397,98.323,4.35681081]
[1770004088082,4.291768,98.389,98.323,4.35681081]
[1770004088281,4.291768,98.439,98.325,4.27527085]
[1770004088497,4.291768,98.469,98.349,50.22183039]
[1770004088818,4.291768,98.469,98.372,4.35681081]
[1770004088997,4.291768,98.449,98.377,4.35681081]
[1770004089173,4.291768,98.487,98.382,4.27527085]
[1770004089492,4.291768,98.469,98.391,4.35681081]
[1770004089693,4.291768,98.43,98.373,28.32]
[1770004089873,4.291768,98.466,98.38,4.27527085]
[1770004090073,4.291768,98.466,98.381,4.35681081]
[1770004090294,4.291768,98.419,98.345,4.35681081]
[1770004090482,4.291768,98.409,98.345,4.35681081]
[1770004090683,4.291768,98.399,98.33,28.32]
[1770004090990,24.16702825,98.38,98.308,4.35681081]
[1770004091193,24.16702825,98.38,98.232,1.0179982]
[1770004091194,5.36086188,98.509,98.31,4.35681081]
[1770004091377,24.16702825,98.37,98.31,4.35681081]
[1770004091583,3.04635759,98.479,98.309,28.3]
[1770004091584,4.291768,98.478,98.313,4.35681081]
[1770004091781,24.16702825,98.47,98.344,4.35681081]
[1770004091978,4.291768,98.478,98.376,50.2523149]
[1770004092180,4.291768,98.478,98.357,9.63613273]
[1770004092181,4.291768,98.562,98.401,4.35681081]
[1770004092496,4.291768,98.551,98.447,4.35681081]
[1770004092707,4.291768,98.551,98.469,4.35681081]
[1770004092884,4.291768,98.551,98.474,4.35681081]
[1770004093086,4.291768,98.519,98.445,28.3]
[1770004093278,4.291768,98.519,98.447,4.35681081]
[1770004093595,4.291768,98.537,98.45,4.35681081]
[1770004093805,4.291768,98.537,98.456,4.35681081]
[1770004093976,4.291768,98.56,98.462,5.36086188]
[1770004094177,4.291768,98.58,98.481,4.35681081]
[1770004094403,4.291768,98.605,98.506,4.35681081]
[1770004094581,4.291768,98.589,98.514,4.35681081]
[1770004094896,24.16702825,98.54,98.476,4.35681081]
[1770004095195,4.291768,98.539,98.476,4.35681081]
[1770004095382,24.16702825,98.55,98.476,4.35681081]
[1770004095577,24.16702825,98.53,98.476,4.35681081]
[1770004095777,4.291768,98.499,98.428,4.35681081]
[1770004095998,24.16702825,98.5,98.428,4.35681081]
[1770004095999,4.291768,98.489,98.428,4.35681081]
[1770004096201,4.291768,98.479,98.416,28.28]
[1770004096499,57.65099078,98.588,98.318,25.42757694]
[1770004096500,24.16702825,98.49,98.418,4.35681081]
[1770004096802,3.04253463,98.602,98.418,4.35681081]
[1770004096979,24.16702825,98.52,98.421,4.27527085]
[1770004097183,24.16702825,98.52,98.432,4.27527085]
[1770004097383,24.16702825,98.49,98.433,4.35681081]
[1770004097700,4.27527085,98.552,98.433,4.35681081]
[1770004097701,4.291768,98.499,98.433,4.35681081]
[1770004097892,4.291768,98.519,98.433,4.35681081]
[1770004098198,4.291768,98.459,98.417,28.28]
[1770004098409,4.24885032,98.439,98.385,28.28]
[1770004098615,24.16702825,98.4,98.336,4.35681081]
[1770004098817,4.24885032,98.457,98.338,4.35681081]
[1770004099109,4.24885032,98.488,98.348,4.35681081]
[1770004099306,24.16702825,98.46,98.362,4.35681081]
[1770004099498,24.16702825,98.41,98.362,4.35681081]
[1770004099705,24.16702825,98.38,98.324,4.35681081]
[1770004099998,24.16702825,98.36,98.313,28.26]
[1770004100183,24.16702825,98.39,98.314,4.35681081]
[1770004100876,24.16702825,98.37,98.314,4.35681081]
[1770004101077,24.16702825,98.34,98.302,28.26]
[1770004101293,24.16702825,98.37,98.294,4.35681081]
[1770004101495,24.16702825,98.36,98.294,4.35681081]
[1770004101889,24.16702825,98.39,98.298,4.35681081]
[1770004102096,24.16702825,98.39,98.3,4.35681081]
[1770004102291,4.24885032,98.444,98.31,4.35681081]
[1770004102496,24.16702825,98.39,98.312,4.35681081]
[1770004102803,24.16702825,98.34,98.294,4.35681081]
[1770004103179,4.24885032,98.368,98.294,4.35681081]
[1770004103403,24.16702825,98.35,98.294,4.35681081]
[1770004103596,24.16702825,98.34,98.283,28.26]
[1770004103906,4.24885032,98.36,98.257,4.35681081]
[1770004104102,24.16702825,98.34,98.271,4.35681081]
[1770004104416,24.16702825,98.3,98.252,4.35681081]
[1770004105181,4.24885032,98.308,98.226,4.35681081]
[1770004105497,4.27527085,98.355,98.235,4.35681081]
[1770004105498,24.16702825,98.31,98.235,4.35681081]
[1770004105806,4.27527085,98.355,98.235,4.35681081]
[1770004105807,24.16702825,98.28,98.235,4.35681081]
[1770004105988,24.16702825,98.26,98.213,4.35681081]
[1770004106188,4.24885032,98.279,98.213,4.35681081]
[1770004106189,24.16702825,98.27,98.213,4.35681081]
[1770004106386,4.24885032,98.279,98.215,4.35681081]
[1770004106577,24.16702825,98.26,98.214,28.28]
[1770004106783,4.24885032,98.279,98.204,4.35681081]
[1770004106979,4.24885032,98.299,98.209,4.35681081]
[1770004107181,24.16702825,98.28,98.209,4.35681081]
[1770004107399,24.16702825,98.27,98.209,4.35681081]
[1770004107709,4.24885032,98.297,98.211,4.35681081]
[1770004107895,4.24885032,98.297,98.214,4.35681081]
[1770004108289,24.16702825,98.29,98.214,4.35681081]
[1770004108483,4.24885032,98.297,98.214,4.35681081]
[1770004108702,23.99451232,98.29,98.214,4.35681081]
[1770004108882,23.99451232,98.29,98.216,4.35681081]
[1770004109088,4.27527085,98.345,98.216,4.35681081]
[1770004109089,23.99451232,98.27,98.216,4.35681081]
[1770004109393,23.99451232,98.27,98.127,1.0190875]
[1770004109394,4.24885032,98.269,98.217,28.28]
[1770004109594,4.24885032,98.259,98.217,28.28]
[1770004110306,4.16429819,98.269,98.196,4.35681081]
[1770004110606,4.16429819,98.27,98.198,4.35681081]
[1770004110909,4.16429819,98.27,98.2,4.35681081]
[1770004111091,28.15881051,98.27,98.2,4.35681081]
[1770004111409,4.16429819,98.299,98.203,4.35681081]
[1770004111599,23.99451232,98.28,98.203,4.35681081]
[1770004111899,23.99451232,98.28,98.129,10.19056969]
[1770004111900,4.16429819,98.259,98.201,28.28]
[1770004112103,4.16429819,98.259,98.193,4.35681081]
[1770004112505,23.99451232,98.27,98.193,4.35681081]
[1770004112506,4.16429819,98.269,98.193,4.35681081]
[1770004112705,4.16429819,98.286,98.193,4.35681081]
[1770004112910,23.99451232,98.32,98.206,4.35681081]
[1770004113203,4.16429819,98.309,98.227,4.35681081]
[1770004113404,4.16429819,98.309,98.21,4.27527085]
[1770004113405,4.16429819,98.309,98.232,4.35681081]
[1770004113607,4.16429819,98.299,98.232,4.35681081]
[1770004113814,4.16429819,98.319,98.236,4.27527085]
[1770004114010,4.16429819,98.336,98.237,4.35681081]
[1770004114313,4.16429819,98.336,98.242,4.35681081]
[1770004114494,4.16429819,98.336,98.238,28.3]
[1770004114495,4.16429819,98.362,98.259,4.35681081]
[1770004114694,4.16429819,98.379,98.274,4.35681081]
[1770004114905,4.16429819,98.369,98.279,4.35681081]
[1770004115210,4.16429819,98.359,98.284,4.35681081]
[1770004116099,4.16429819,98.349,98.284,4.35681081]
[1770004116300,4.16429819,98.368,98.284,4.35681081]
[1770004116502,4.16429819,98.406,98.286,4.35681081]
[1770004116800,62.7,99.091,98.285,5.36086188]
[1770004116801,4.16429819,98.449,98.33,4.27527085]
[1770004117004,4.16429819,98.429,98.335,4.35681081]
[1770004117203,4.16429819,98.409,98.335,4.35681081]
[1770004117408,4.16429819,98.398,98.31,4.35681081]
[1770004117614,23.99451232,98.38,98.31,4.35681081]
[1770004117805,23.99451232,98.37,98.31,4.35681081]
[1770004118006,4.16429819,98.399,98.31,4.35681081]
[1770004118201,4.16429819,98.389,98.31,4.35681081]
[1770004118395,4.27527085,98.431,98.284,28.3]
[1770004118396,4.16429819,98.369,98.284,28.3]
[1770004118605,23.99451232,98.35,98.285,4.2756545]
[1770004119012,23.99451232,98.37,98.288,4.2756545]
[1770004119224,4.16429819,98.369,98.288,4.2756545]
[1770004119598,4.16429819,98.359,98.288,4.2756545]
[1770004119798,4.16429819,98.359,98.29,4.2756545]
[1770004120422,4.16429819,98.413,98.293,4.2756545]
[1770004120598,4.16429819,98.413,98.311,4.2756545]
[1770004120804,4.16429819,98.446,98.34,4.2756545]
[1770004121012,4.16429819,98.469,98.342,4.2756545]
[1770004121201,4.16429819,98.439,98.342,4.2756545]
[1770004121403,4.16429819,98.419,98.342,4.2756545]
[1770004121997,4.16429819,98.439,98.342,4.2756545]
[1770004122201,4.16429819,98.439,98.333,50.0180431]
[1770004122202,4.16429819,98.439,98.347,4.2756545]
[1770004122402,4.16429819,98.439,98.349,4.2756545]
[1770004122613,23.99451232,98.46,98.358,4.2756545]
[1770004122614,4.16429819,98.459,98.358,4.2756545]
[1770004123005,0.1,98.47,98.372,4.2756545]
[1770004123214,4.16429819,98.516,98.404,4.27527085]
[1770004123520,4.26329819,98.55,98.442,4.2756545]
[1770004123719,4.26329819,98.595,98.477,4.27527085]
[1770004124020,23.99451232,98.57,98.509,4.2756545]
[1770004124316,23.99451232,98.56,98.51,28.28]
[1770004124512,23.99451232,98.55,98.505,28.28]
[1770004124814,4.26329819,98.557,98.479,4.2756545]
[1770004125026,4.26329819,98.605,98.482,4.2756545]
[1770004125202,4.26329819,98.569,98.487,4.2756545]
[1770004125402,4.26329819,98.569,98.483,28.28]
[1770004125403,4.26329819,98.569,98.492,4.2756545]
[1770004126112,23.99451232,98.54,98.439,4.2756545]
[1770004126299,23.99451232,98.54,98.444,4.2756545]
[1770004126506,4.26329819,98.549,98.449,4.2756545]
[1770004126712,4.26329819,98.63,98.461,4.2756545]
[1770004126911,4.10264987,98.605,98.487,50.08706923]
[1770004127117,4.10264987,98.599,98.502,4.25099705]
[1770004127525,5.36086188,98.669,98.507,4.25099705]
[1770004127526,4.10264987,98.589,98.507,4.25099705]
[1770004127725,4.10264987,98.589,98.475,50.89499745]
[1770004127726,23.99451232,98.57,98.508,32.51099705]
[1770004127925,23.99451232,98.58,98.509,4.25099705]
[1770004128219,23.99451232,98.64,98.509,4.25099705]
[1770004128220,23.99451232,98.56,98.509,4.25099705]
[1770004128429,23.99451232,98.54,98.491,4.25099705]
[1770004128723,23.99451232,98.54,98.345,50.84140598]
[1770004128724,23.99451232,98.52,98.477,28.26]
[1770004128922,23.99451232,98.52,98.47,28.26]
[1770004129122,23.99451232,98.53,98.472,4.25099705]
[1770004129303,23.99451232,98.52,98.461,28.26]
[1770004129510,4.10264987,98.586,98.466,4.25099705]
[1770004129704,4.10264987,98.586,98.439,50.15308206]
[1770004129705,23.99451232,98.59,98.485,4.25099705]
[1770004130006,4.10264987,98.579,98.49,4.25099705]
[1770004130520,23.99451232,98.56,98.49,4.25099705]
[1770004130723,23.99451232,98.55,98.49,4.25099705]
[1770004131225,4.10264987,98.549,98.486,28.26]
[1770004131417,23.99451232,98.52,98.464,4.25099705]
[1770004131623,23.99451232,98.51,98.464,4.25099705]
[1770004131817,4.10264987,98.533,98.464,4.25099705]
[1770004131818,23.99451232,98.53,98.464,4.25099705]
[1770004132027,23.99451232,98.52,98.464,4.25099705]
[1770004132203,23.99451232,98.53,98.464,4.25099705]
[1770004132403,23.99451232,98.56,98.469,4.25099705]
[1770004132624,4.10264987,98.559,98.474,4.25099705]
[1770004132810,3.78862777,98.606,98.474,4.25099705]
[1770004132811,23.99451232,98.57,98.474,4.25099705]
[1770004133122,4.10264987,98.539,98.452,4.25099705]
[1770004133322,23.99451232,98.5,98.452,4.25099705]
[1770004133528,23.99451232,98.52,98.454,4.25099705]
[1770004133701,4.10264987,98.529,98.454,4.25099705]
[1770004133908,23.99451232,98.51,98.454,4.25099705]
[1770004134608,4.10264987,98.53,98.454,4.25099705]
[1770004134809,23.99451232,98.54,98.454,4.25099705]
[1770004135212,4.10264987,98.564,98.457,50.02632691]
[1770004135524,4.10264987,98.564,98.447,4.27527085]
[1770004135525,4.10264987,98.549,98.471,4.25099705]
[1770004135708,4.10264987,98.549,98.473,4.25099705]
[1770004135909,23.99451232,98.53,98.473,4.25099705]
[1770004136117,23.99451232,98.52,98.473,4.25099705]
[1770004136305,23.99451232,98.51,98.457,4.25099705]
[1770004136831,23.99451232,98.54,98.457,4.25099705]
[1770004137020,28.09716219,98.56,98.462,4.25099705]
[1770004137420,23.99451232,98.53,98.462,4.25099705]
[1770004138127,4.10264987,98.54,98.462,4.25099705]
[1770004138333,23.99451232,98.52,98.462,4.25099705]
[1770004138530,23.99451232,98.51,98.462,4.25099705]
[1770004138836,23.99451232,98.52,98.462,4.25099705]
[1770004139130,23.99451232,98.54,98.462,4.25099705]
[1770004139444,4.10264987,98.539,98.464,4.25099705]
[1770004139728,23.99451232,98.51,98.464,32.49099705]
[1770004140026,4.10264987,98.542,98.465,4.25099705]
[1770004140326,4.10264987,98.539,98.465,4.25099705]
[1770004140735,4.10264987,98.573,98.472,4.25099705]
[1770004140909,4.10264987,98.596,98.484,4.27527085]
[1770004141110,23.99451232,98.58,98.495,4.25099705]
[1770004141507,23.99451232,98.6,98.495,4.25099705]
[1770004141736,23.99451232,98.6,98.465,1.01558929]
[1770004141737,4.10264987,98.629,98.526,4.27527085]
[1770004141921,4.10264987,98.629,98.51,5.36086188]
[1770004141922,4.10264987,98.647,98.551,4.27527085]
[1770004142110,23.99451232,98.63,98.552,4.25099705]
[1770004142310,23.99451232,98.66,98.553,4.25099705]
[1770004142506,4.10264987,98.683,98.578,4.25099705]
[1770004142726,4.10264987,98.683,98.562,4.27527085]
[1770004142727,0.1,98.68,98.597,4.25099705]
[1770004142927,4.10264987,98.678,98.602,4.25099705]
[1770004143128,4.10264987,98.678,98.607,4.25099705]
[1770004143330,0.1,98.68,98.612,50.60136674]
[1770004143533,5.30639002,98.767,98.625,4.25099705]
[1770004143534,23.99451232,98.73,98.625,4.25099705]
[1770004143718,23.99451232,98.69,98.627,4.25099705]
[1770004143924,23.99451232,98.66,98.609,4.25099705]
[1770004144120,23.99451232,98.76,98.55,4.25099705]
[1770004144121,23.99451232,98.64,98.55,4.25099705]
[1770004144322,23.99451232,98.61,98.572,4.25099705]
[1770004144521,4.27527085,98.737,98.572,4.14812705]
[1770004144825,23.99451232,98.65,98.572,4.14812705]
[1770004145024,4.10264987,98.639,98.572,4.14812705]
[1770004145427,4.10264987,98.705,98.572,4.14812705]
[1770004145613,4.10264987,98.705,98.552,28.24]
[1770004145614,4.10264987,98.719,98.599,5.36086188]
[1770004145814,4.10264987,98.753,98.627,50.77185395]
[1770004146029,4.10264987,98.749,98.643,4.27527085]
[1770004146235,4.10264987,98.749,98.647,4.27527085]
[1770004146416,4.10264987,98.739,98.652,4.25099705]
[1770004146614,5.30260162,98.833,98.652,4.25099705]
[1770004146615,28.09716219,98.76,98.652,4.25099705]
[1770004146823,23.99451232,98.74,98.658,4.25099705]
[1770004147114,4.10264987,98.75,98.658,4.25099705]
[1770004147437,4.10264987,98.83,98.691,4.25099705]
[1770004147622,4.10264987,98.83,98.724,50.45148278]
[1770004147826,4.18549313,98.825,98.728,4.27527085]
[1770004148014,4.18549313,98.839,98.728,4.27527085]
[1770004148332,6.65901909,98.872,98.755,50.7893432]
[1770004148539,4.18549313,98.902,98.774,50.70240147]
[1770004148730,6.71521468,98.949,98.798,50.92032452]
[1770004148923,5.29425651,98.964,98.821,50.38622629]
[1770004149124,5.29425651,98.964,98.82,4.27527085]
[1770004149125,6.69780645,99.045,98.845,50.88845408]
[1770004149345,6.69780645,99.045,98.867,50.66430527]
[1770004149519,4.5,99.12,98.881,50.61734942]
[1770004149717,6.71521468,99.143,98.905,50.63035685]
[1770004150031,2.01555223,99.229,98.934,50.68479096]
[1770004150238,6.74860481,99.26,98.961,5.36086188]
[1770004150239,4.5,99.213,98.961,5.36086188]
[1770004150535,23.99451232,99.21,98.989,5.50302345]
[1770004150717,2.47215037,99.267,99.004,50.70906249]
[1770004150718,4.5,99.209,99.004,50.70906249]
[1770004150917,4.5,99.209,99.013,60.45102837]
[1770004151118,4.5,99.209,99.005,19.87161734]
[1770004151119,4.5,99.209,99.043,50.81444146]
[1770004151318,4.5,99.209,99.064,50.59672041]
[1770004151538,4.5,99.209,99.065,43.83695118]
[1770004151716,2.47215037,99.267,99.016,0.28432314]
[1770004151717,4.5,99.166,99.016,0.28432314]
[1770004151915,4.5,99.156,99.016,0.28432314]
[1770004152122,4.5,99.149,99.014,28.2]
[1770004152319,4.5,99.149,99.015,50.26267484]
[1770004152534,4.5,99.106,98.946,50.8529433]
[1770004152741,4.5,99.111,98.947,28.18]
[1770004152922,4.5,99.111,98.967,4.27527085]
[1770004153120,7.05232826,99.258,98.987,4.41573114]
[1770004153336,7.05232826,99.258,99.015,4.41573114]
[1770004153337,23.99451232,99.13,99.015,4.41573114]
[1770004153537,7.05232826,99.258,99.016,28.16]
[1770004153729,23.99451232,99.11,99.016,28.16]
[1770004153932,50.46528888,99.213,99.017,5.64518502]
[1770004154130,4.27527085,99.107,98.968,4.41573114]
[1770004154433,23.99451232,99.07,98.989,4.41573114]
[1770004154640,23.99451232,99.12,98.94,28.16]
[1770004154641,50.69247352,99.238,98.968,4.41573114]
[1770004154840,50.15922237,99.232,98.97,4.41573114]
[1770004155140,4.18549313,99.099,98.993,4.41573114]
[1770004155320,4.18549313,99.12,99.01,4.41573114]
[1770004155521,23.99451232,99.14,99.037,4.27527085]
[1770004155729,4.18549313,99.144,99.068,4.41573114]
[1770004155931,4.18549313,99.129,99.047,4.41573114]
[1770004156128,4.18549313,99.236,99.055,4.41573114]
[1770004156362,23.99451232,99.23,99.095,4.41573114]
[1770004156537,4.18549313,99.239,99.13,4.27527085]
[1770004156844,4.18549313,99.266,99.158,50.70398597]
[1770004157033,4.18549313,99.239,99.143,5.36086188]
[1770004157232,4.18549313,99.219,99.148,28.14]
[1770004157545,4.18549313,99.199,99.148,28.14]
[1770004157928,4.18549313,99.159,99.03,4.41573114]
[1770004158233,50.57976087,99.215,99.007,4.41573114]
[1770004158433,4.18549313,99.214,99.009,4.41573114]
[1770004158620,17.12570263,99.266,98.993,28.12]
[1770004158621,4.18549313,99.069,98.993,28.12]
[1770004158942,5.36086188,99.213,98.993,28.12]
[1770004158943,4.18549313,99.105,98.994,4.41573114]
[1770004159126,4.18549313,99.188,98.998,4.41573114]
[1770004159324,4.18549313,99.292,99.024,4.41573114]
[1770004159549,4.18549313,99.259,99.072,4.27527085]
[1770004159846,4.18549313,99.317,99.125,2.02784963]
[1770004160047,4.18549313,99.453,99.154,50.45056572]
[1770004160250,4.18549313,99.369,99.186,50.30904358]
[1770004160435,4.18549313,99.319,99.214,0.14216157]
[1770004160628,4.18549313,99.451,99.233,2.02784963]
[1770004160829,4.18549313,99.357,99.25,2.02784963]
[1770004161030,23.99451232,99.28,99.216,28.1]
[1770004161246,4.18549313,99.249,99.172,2.02784963]
[1770004161447,4.18549313,99.269,99.172,2.02784963]
[1770004161644,5.36086188,99.358,99.172,2.02784963]
[1770004161854,23.99451232,99.27,99.172,2.02784963]
[1770004162152,23.99451232,99.23,99.171,28.1]
[1770004162454,50.23254899,99.346,99.171,28.1]
[1770004162455,4.18549313,99.323,99.212,50.06540748]
[1770004162752,4.18549313,99.436,99.222,52.88940542]
[1770004162959,4.18549313,99.365,99.214,50.40642606]
[1770004163250,4.18549313,99.365,99.091,30.27703486]
[1770004163251,4.18549313,99.349,99.251,2.02784963]
[1770004163550,4.18549313,99.371,99.288,2.02784963]
[1770004163729,4.18549313,99.418,99.301,2.02784963]
[1770004164051,4.18549313,99.422,99.303,2.02784963]
[1770004164226,5.26401468,99.498,99.297,50.12234959]
[1770004164549,5.02394638,99.524,99.346,4.41573114]
[1770004164741,5.26149061,99.548,99.364,50.89904948]
[1770004164931,0.1,99.5,99.391,50.16665274]
[1770004165127,0.1,99.5,99.42,3.44120159]
[1770004165324,23.99451232,99.6,99.442,3.34120159]
[1770004165538,0.2999908,99.649,99.444,3.34120159]
[1770004165744,23.99451232,99.57,99.463,3.34120159]
[1770004165942,0.2999908,99.649,99.471,0.28432314]
[1770004166125,4.18549313,99.648,99.47,3.34120159]
[1770004166330,4.18549313,99.559,99.472,3.34120159]
[1770004166635,0.2999908,99.649,99.498,4.41573114]
[1770004166836,0.2999908,99.649,99.514,4.41573114]
[1770004166837,23.99451232,99.58,99.514,4.41573114]
[1770004167037,2.30705101,99.649,99.457,5.36086188]
[1770004167250,7.32466282,99.649,99.447,4.41573114]
[1770004167449,23.99451232,99.52,99.446,4.41573114]
[1770004167667,23.99451232,99.52,99.448,4.41573114]
[1770004167836,0.2999908,99.649,99.492,4.41573114]
[1770004168037,23.99451232,99.69,99.533,50.60848593]
[1770004168360,2.00589733,99.706,99.535,4.41573114]
[1770004168558,4.18549313,99.706,99.551,4.27527085]
[1770004168759,23.99451232,99.63,99.561,4.41573114]
[1770004169057,4.18549313,99.621,99.536,28.04]
[1770004169356,4.18549313,99.666,99.55,4.70005428]
[1770004169559,50.21530451,99.787,99.567,4.41573114]
[1770004169745,5.0103877,99.793,99.59,4.27527085]
[1770004169940,23.99451232,99.76,99.624,4.27527085]
[1770004170141,23.99451232,99.74,99.638,4.41573114]
[1770004170341,4.18549313,99.768,99.651,4.41573114]
[1770004170549,4.18549313,99.795,99.675,5.36086188]
[1770004170862,4.18549313,99.795,99.665,4.27527085]
[1770004170863,4.18549313,99.729,99.612,4.41573114]
[1770004171061,4.18549313,99.669,99.605,28.02]
[1770004171262,4.18549313,99.669,99.591,4.41573114]
[1770004171263,4.18549313,99.619,99.556,28.02]
[1770004171467,23.28581803,99.63,99.557,4.41573114]
[1770004171959,4.18549313,99.609,99.556,28.02]
[1770004172260,4.18549313,99.609,99.502,4.41573114]
[1770004172261,23.28581803,99.58,99.502,4.41573114]
[1770004172460,4.14363819,99.658,99.503,50.37084967]
[1770004172662,23.28581803,99.62,99.507,0.14216157]
[1770004172962,23.28581803,99.55,99.489,4.41573114]
[1770004173264,4.14363819,99.589,99.489,4.41573114]
[1770004173561,4.14363819,99.638,99.489,4.41573114]
[1770004173744,23.28581803,99.63,99.507,50.43989104]
[1770004173946,23.28581803,99.63,99.53,4.41573114]
[1770004174162,4.14363819,99.739,99.55,4.41573114]
[1770004174355,4.14363819,99.739,99.639,4.41573114]
[1770004174556,23.28581803,99.84,99.645,4.70005428]
[1770004174760,4.14363819,99.839,99.672,50.63050673]
[1770004174945,4.14363819,99.829,99.701,54.78747296]
[1770004175144,23.28581803,99.81,99.716,4.41573114]
[1770004175344,4.14363819,99.857,99.739,50.29455109]
[1770004175555,4.14363819,99.857,99.734,5.64518502]
[1770004175556,4.14363819,99.817,99.689,4.41573114]
[1770004175863,23.28581803,99.79,99.684,4.41573114]
[1770004176162,5.24069701,99.931,99.688,4.41573114]
[1770004176163,4.14363819,99.794,99.688,4.41573114]
[1770004176458,23.28581803,99.74,99.688,4.41573114]
[1770004176664,23.28581803,99.71,99.637,4.41573114]
[1770004177161,50.38479253,99.826,99.636,27.98]
[1770004177162,23.28581803,99.81,99.66,50.16827744]
[1770004177340,23.28581803,99.81,99.658,5.36086188]
[1770004177341,23.28581803,99.81,99.693,4.41573114]
[1770004177541,23.28581803,99.77,99.707,4.41573114]
[1770004177843,23.28581803,99.81,99.718,4.35908172]
[1770004178050,23.28581803,99.8,99.72,4.35908172]
[1770004178460,4.14363819,99.833,99.72,4.35908172]
[1770004178461,23.28581803,99.79,99.72,4.35908172]
[1770004178648,4.14363819,99.783,99.719,27.96]
[1770004178849,23.28581803,99.77,99.694,4.35908172]
[1770004179051,23.28581803,99.8,99.705,4.27527085]
[1770004179374,4.14363819,99.926,99.735,4.64340486]
[1770004179554,4.44062909,99.909,99.803,4.35908172]
[1770004179753,23.28581803,99.89,99.803,4.35908172]
[1770004180061,4.44062909,99.809,99.709,4.35908172]
[1770004180253,23.28581803,99.74,99.709,4.35908172]
[1770004180751,4.44062909,99.799,99.66,4.35908172]
[1770004180954,23.28581803,99.72,99.66,4.35908172]
[1770004181165,50.37882311,99.916,99.66,4.35908172]
[1770004181466,4.44062909,99.822,99.673,4.35908172]
[1770004181657,23.28581803,99.75,99.679,4.35908172]
[1770004181861,4.44062909,99.926,99.679,4.35908172]
[1770004182064,4.44062909,99.828,99.702,9.7199436]
[1770004182248,23.28581803,99.8,99.712,4.35908172]
[1770004182454,23.28581803,99.8,99.683,5.36086188]
[1770004182455,4.44062909,99.828,99.717,4.35908172]
[1770004182770,23.28581803,99.75,99.672,4.35908172]
[1770004182967,23.28581803,99.73,99.672,4.35908172]
[1770004183170,23.28581803,99.72,99.672,4.35908172]
[1770004183468,23.28581803,99.68,99.622,4.35908172]
[1770004183769,23.28581803,99.71,99.622,4.35908172]
[1770004183965,23.28581803,99.67,99.622,4.35908172]
[1770004184167,23.28581803,99.67,99.521,10.04810244]
[1770004184168,23.28581803,99.64,99.596,4.35908172]
[1770004184352,23.28581803,99.64,99.551,27.92]
[1770004184353,23.28581803,99.65,99.573,4.35908172]
[1770004184670,4.39622279,99.67,99.573,4.35908172]
[1770004185063,23.28581803,99.65,99.573,4.35908172]
[1770004185368,4.39622279,99.696,99.552,4.35908172]
[1770004185549,23.28581803,99.7,99.56,4.35908172]
[1770004185752,23.28581803,99.74,99.597,50.00872898]
[1770004185947,10.01722963,99.828,99.625,5.36086188]
[1770004185948,23.28581803,99.73,99.625,5.36086188]
[1770004186152,4.39622279,99.745,99.64,4.35908172]
[1770004186454,23.28581803,99.69,99.641,27.92]
[1770004186770,23.28581803,99.69,99.619,4.35908172]
[1770004186976,4.39622279,99.721,99.619,4.35908172]
[1770004187169,23.28581803,99.74,99.625,4.49704483]
[1770004187475,23.28581803,99.74,99.638,4.49704483]
[1770004187856,23.28581803,99.77,99.657,4.49704483]
[1770004188056,23.28581803,99.77,99.65,50.95054437]
[1770004188057,4.31155851,99.855,99.676,50.22591764]